bitfinex/quotes_SOLUSD_20250609
["timestamp","ask_amount","ask_price","bid_price","bid_amount"]
[1749430685729,7.92704656,152.53,152.49,6.55774604]
[1749430686037,4.90936416,152.52,152.49,6.55774604]
[1749430686224,4.90936416,152.51,152.49,6.55774604]
[1749430686424,7.92704656,152.53,152.49,6.55774604]
[1749430686639,4.90911227,152.52,152.49,6.55774604]
[1749430686845,4.90911227,152.51,152.49,6.55774604]
[1749430687048,7.92704656,152.53,152.49,6.55774604]
[1749430687358,4.90877082,152.52,152.49,6.55774604]
[1749430687530,7.92704656,152.53,152.49,6.55774604]
[1749430687531,4.90877082,152.51,152.49,6.55774604]
[1749430687846,7.92704656,152.53,152.49,6.55774604]
[1749430687847,4.90878818,152.5,152.49,6.55774604]
[1749430688144,4.90878679,152.5,152.49,6.55774604]
[1749430688347,7.92704656,152.53,152.49,6.55774604]
[1749430688522,4.9089245,152.52,152.49,6.55774604]
[1749430688818,4.9089245,152.51,152.49,6.55774604]
[1749430689017,7.92704656,152.53,152.49,6.55774604]
[1749430689233,4.90701325,152.52,152.49,6.55774604]
[1749430689437,4.90701325,152.51,152.49,14.4847926]
[1749430689628,7.73097317,152.55,152.5,26.57669542]
[1749430689960,7.92704656,152.52,152.49,6.55774604]
[1749430690138,4.90730564,152.51,152.49,6.55774604]
[1749430690447,7.92704656,152.52,152.46,37.45885699]
[1749430690448,12.83393604,152.5,152.46,17.29894508]
[1749430690635,6.11607317,152.54,152.42,6.1995]
[1749430690636,7.92704656,152.48,152.43,59.32964886]
[1749430690837,7.92704656,152.47,152.43,67.25669542]
[1749430691166,38.77757317,152.52,152.43,67.25669542]
[1749430691167,7.92704656,152.48,152.43,67.25669542]
[1749430691543,7.92704656,152.48,152.43,73.81708379]
[1749430691738,7.92704656,152.48,152.43,33.13708379]
[1749430691944,7.92704656,152.48,152.44,7.92704656]
[1749430692341,7.92704656,152.47,152.43,33.13708379]
[1749430692543,7.92704656,152.45,152.42,17.28066429]
[1749430692732,7.92704656,152.46,152.42,65.88771085]
[1749430694252,7.92704656,152.47,152.43,7.92704656]
[1749430694462,7.92704656,152.48,152.44,7.92704656]
[1749430694628,33.92704656,152.49,152.45,7.92704656]
[1749430694950,4.89832106,152.48,152.45,7.92704656]
[1749430695156,7.92704656,152.48,152.44,7.92704656]
[1749430696133,7.92704656,152.48,152.45,6.55952771]
[1749430696328,7.92704656,152.49,152.45,6.55952771]
[1749430697259,4.89904213,152.48,152.45,6.55952771]
[1749430697562,7.92704656,152.49,152.45,6.55952771]
[1749430698447,4.89846565,152.48,152.45,6.55952771]
[1749430698676,7.92704656,152.49,152.45,6.55952771]
[1749430698854,4.89784331,152.48,152.45,6.55952771]
[1749430699057,4.89784331,152.48,152.44,7.92704656]
[1749430699058,7.92704656,152.48,152.44,7.92704656]
[1749430699253,6.55809565,152.49,152.43,6.56011448]
[1749430699254,12.82452356,152.47,152.43,6.56011448]
[1749430699462,7.92704656,152.47,152.43,25.20976334]
[1749430700150,7.92704656,152.47,152.43,33.1368099]
[1749430700755,7.92704656,152.47,152.43,25.20976334]
[1749430700963,12.82199702,152.46,152.42,17.28065796]
[1749430701275,7.92704656,152.45,152.42,10.72]
[1749430701455,7.92704656,152.45,152.42,17.28081873]
[1749430705448,7.92704656,152.45,152.41,25.21075893]
[1749430706666,7.92704656,152.42,152.38,18.64964886]
[1749430706971,38.96452633,152.46,152.37,47.24268214]
[1749430706972,7.92704656,152.41,152.37,14.4897287]
[1749430707954,7.92704656,152.42,152.38,7.92704656]
[1749430710368,7.92704656,152.42,152.38,14.4893731]
[1749430711354,7.92704656,152.41,152.37,33.13951277]
[1749430713169,7.92704656,152.41,152.37,25.21246621]
[1749430713375,7.92704656,152.41,152.37,33.13951277]
[1749430713964,7.92704656,152.41,152.37,25.21246621]
[1749430714150,7.92704656,152.4,152.36,14.49028377]
[1749430714350,7.92704656,152.39,152.36,18.64964886]
[1749430714748,7.92704656,152.39,152.35,18.64704656]
[1749430714972,7.92704656,152.39,152.36,18.64964886]
[1749430715473,7.92704656,152.4,152.36,33.1399669]
[1749430717356,26.0,152.43,152.37,14.48965909]
[1749430717553,7.92704656,152.42,152.38,7.92704656]
[1749430719262,7.92704656,152.42,152.38,14.48950042]
[1749430719464,33.92704656,152.43,152.38,14.48950042]
[1749430720175,7.92704656,152.42,152.38,14.48950042]
[1749430724455,33.92704656,152.43,152.39,7.92704656]
[1749430725985,33.92704656,152.43,152.39,14.48906417]
[1749430728717,147.617,152.46,152.41,7.92704656]
[1749430728892,7.92704656,152.43,152.39,7.92704656]
[1749430729386,7.92704656,152.43,152.38,47.22236877]
[1749430729387,7.92704656,152.42,152.38,40.66]
[1749430730269,7.92704656,152.42,152.38,47.22248987]
[1749430730464,7.92704656,152.42,152.38,40.66]
[1749430730666,7.92704656,152.4,152.36,33.1399917]
[1749430739391,4.87775061,152.42,152.39,7.92704656]
[1749430739586,4.87775061,152.42,152.36,41.90577444]
[1749430739587,19.36436493,152.45,152.4,7.92704656]
[1749430739890,30.87775061,152.45,152.4,7.92704656]
[1749430740099,38.80479717,152.45,152.4,7.92704656]
[1749430740401,12.82279868,152.45,152.4,7.92704656]
[1749430741402,12.82279868,152.45,152.4,14.48850735]
[1749430742081,19.38238182,152.45,152.4,14.48850735]
[1749430742277,4.89881912,152.44,152.4,14.48850735]
[1749430742484,12.82586568,152.44,152.4,14.48850735]
[1749430743301,7.92704656,152.44,152.4,14.48850735]
[1749430745597,7.92704656,152.45,152.4,14.48850735]
[1749430745805,4.90478738,152.44,152.4,14.48850735]
[1749430745999,7.92704656,152.45,152.4,14.48850735]
[1749430746299,4.90478738,152.44,152.4,14.48850735]
[1749430746492,7.92704656,152.45,152.4,14.48850735]
[1749430746687,4.90531598,152.44,152.4,14.48850735]
[1749430746887,7.92704656,152.45,152.4,14.48850735]
[1749430747094,4.90523443,152.44,152.4,14.48850735]
[1749430747310,7.92704656,152.45,152.4,14.48850735]
[1749430747603,4.90583934,152.44,152.4,14.48850735]
[1749430747801,7.92704656,152.45,152.4,14.48850735]
[1749430747978,4.90577632,152.44,152.4,14.48850735]
[1749430748173,7.92704656,152.45,152.4,14.48850735]
[1749430748397,4.90577632,152.44,152.41,7.92704656]
[1749430748604,7.92704656,152.45,152.41,7.92704656]
[1749430748787,4.90614932,152.44,152.42,6.56081879]
[1749430748988,7.92704656,152.45,152.42,6.56081879]
[1749430749289,4.90586656,152.44,152.42,6.56081879]
[1749430749603,7.92704656,152.45,152.41,6.56110986]
[1749430749776,4.90630992,152.44,152.41,6.56110986]
[1749430750101,7.92704656,152.45,152.41,6.56110986]
[1749430750284,4.90634613,152.44,152.41,6.56110986]
[1749430750490,7.92704656,152.45,152.41,6.56110986]
[1749430750692,4.90681094,152.44,152.41,6.56110986]
[1749430750890,7.92704656,152.45,152.41,6.56110986]
[1749430751194,4.90688531,152.44,152.41,6.56110986]
[1749430751395,12.83406126,152.43,152.39,7.92704656]
[1749430751594,7.92704656,152.43,152.39,7.92704656]
[1749430752204,7.92704656,152.44,152.39,7.92704656]
[1749430752501,4.90767911,152.43,152.4,14.4886399]
[1749430752703,7.92704656,152.44,152.4,14.4886399]
[1749430752899,4.90747054,152.43,152.4,14.4886399]
[1749430753083,7.92704656,152.44,152.4,14.4886399]
[1749430753284,4.90747054,152.43,152.4,14.4886399]
[1749430753506,7.92704656,152.44,152.4,14.4886399]
[1749430753688,4.90731259,152.43,152.4,6.56159334]
[1749430753887,7.92704656,152.44,152.4,6.56159334]
[1749430754088,4.9072933,152.43,152.4,6.56159334]
[1749430754283,7.92704656,152.44,152.4,6.56159334]
[1749430754500,4.90732077,152.43,152.4,6.56159334]
[1749430754686,7.92704656,152.44,152.4,6.56159334]
[1749430754992,4.90711684,152.43,152.4,6.56159334]
[1749430755199,7.92704656,152.44,152.4,6.56159334]
[1749430755402,4.90712181,152.43,152.4,6.56159334]
[1749430755593,7.92704656,152.44,152.4,6.56159334]
[1749430755794,4.90706515,152.43,152.4,6.56159334]
[1749430756104,12.83433928,152.42,152.38,7.92704656]
[1749430756409,7.92704656,152.42,152.38,7.92704656]
[1749430757608,7.92704656,152.42,152.38,14.4894204]
[1749430758108,7.92704656,152.42,152.38,6.56237384]
[1749430761711,7.92704656,152.42,152.38,14.4894204]
[1749430762293,7.92704656,152.43,152.39,26.57669542]
[1749430762600,7.92704656,152.44,152.39,26.57669542]
[1749430762804,4.9085878,152.43,152.39,26.57669542]
[1749430763010,7.92704656,152.44,152.39,26.57669542]
[1749430763219,4.9085885,152.43,152.39,26.57669542]
[1749430763514,7.92704656,152.44,152.39,26.57669542]
[1749430763703,4.90847078,152.43,152.4,6.56167979]
[1749430763903,7.92704656,152.44,152.4,6.56167979]
[1749430764107,4.90847014,152.43,152.4,6.56167979]
[1749430764416,7.92704656,152.44,152.4,6.56167979]
[1749430764612,4.90836466,152.43,152.4,6.56167979]
[1749430764820,7.92704656,152.43,152.39,25.21157327]
[1749430768312,14.48702276,152.44,152.39,25.21157327]
[1749430768521,4.90862147,152.43,152.39,25.21157327]
[1749430768696,14.48702276,152.44,152.39,25.21157327]
[1749430768896,4.90871312,152.43,152.39,25.21157327]
[1749430769113,14.48702276,152.44,152.39,25.21157327]
[1749430769320,4.90866349,152.43,152.39,25.21157327]
[1749430769521,14.48702276,152.44,152.39,25.21157327]
[1749430769708,4.90869217,152.43,152.39,25.21157327]
[1749430769909,7.92704656,152.44,152.39,33.13861983]
[1749430770116,4.90851846,152.43,152.39,33.13861983]
[1749430770316,33.92704656,152.45,152.39,33.13861983]
[1749430770520,4.90829238,152.44,152.39,33.13861983]
[1749430770815,33.92704656,152.45,152.39,33.13861983]
[1749430771124,4.90828119,152.44,152.39,33.13861983]
[1749430771315,4.90828119,152.43,152.39,33.13861983]
[1749430771514,33.92704656,152.45,152.39,33.13861983]
[1749430771820,4.90829938,152.44,152.39,33.13861983]
[1749430772017,4.90829938,152.43,152.39,33.13861983]
[1749430772204,33.92704656,152.45,152.39,33.13861983]
[1749430772406,4.90830066,152.44,152.39,33.13861983]
[1749430772604,4.90830066,152.43,152.39,33.13861983]
[1749430772805,40.48665272,152.45,152.39,33.13861983]
[1749430773014,4.90821697,152.44,152.4,7.92704656]
[1749430773207,40.48665272,152.45,152.4,7.92704656]
[1749430773413,4.90811579,152.44,152.4,14.48855166]
[1749430773610,40.48665272,152.45,152.4,14.48855166]
[1749430773815,4.90802515,152.44,152.4,14.48855166]
[1749430774015,4.90802515,152.43,152.4,14.48855166]
[1749430774220,146.1,152.46,152.42,7.92704656]
[1749430774422,10.68,152.49,152.45,7.92704656]
[1749430774707,4.90470879,152.48,152.45,7.92704656]
[1749430774912,40.48485988,152.49,152.45,7.92704656]
[1749430775242,4.90463966,152.48,152.45,7.92704656]
[1749430775422,14.48485988,152.49,152.45,7.92704656]
[1749430775733,26.0,152.48,152.45,7.92704656]
[1749430776027,26.0,152.48,152.44,14.48686205]
[1749430776416,33.92704656,152.48,152.44,14.48686205]
[1749430776616,33.92704656,152.48,152.44,7.92704656]
[1749430778432,40.4853147,152.48,152.44,7.92704656]
[1749430778729,4.90207625,152.47,152.44,7.92704656]
[1749430779025,4.90207689,152.47,152.44,7.92704656]
[1749430779231,40.4853147,152.48,152.44,7.92704656]
[1749430780534,4.90255164,152.47,152.43,14.48729997]
[1749430780910,40.4853147,152.48,152.43,14.48729997]
[1749430781310,4.90274303,152.47,152.43,14.48729997]
[1749430781619,40.4853147,152.48,152.43,14.48729997]
[1749430781816,4.90253478,152.47,152.43,14.48729997]
[1749430782123,4.90253542,152.47,152.43,14.48729997]
[1749430782325,40.4853147,152.48,152.43,14.48729997]
[1749430782734,4.90281834,152.47,152.43,14.48729997]
[1749430783026,4.90281898,152.47,152.43,14.48729997]
[1749430783413,40.4853147,152.48,152.43,14.48729997]
[1749430783608,4.90337908,152.47,152.43,14.48729997]
[1749430783839,40.4853147,152.48,152.43,14.48729997]
[1749430784008,40.4853147,152.48,152.44,7.92704656]
[1749430784514,4.90385392,152.47,152.44,7.92704656]
[1749430784709,40.4853147,152.48,152.44,7.92704656]
[1749430784909,4.9037481,152.47,152.44,7.92704656]
[1749430785129,40.4853147,152.48,152.44,7.92704656]
[1749430785633,4.90349894,152.47,152.44,7.92704656]
[1749430785929,33.92704656,152.48,152.44,14.48683622]
[1749430787836,4.90273334,152.47,152.44,14.48683622]
[1749430788840,33.92704656,152.48,152.44,14.48683622]
[1749430789332,26.0,152.48,152.44,14.48683622]
[1749430789640,33.92704656,152.48,152.44,14.48683622]
[1749430790440,46.8499,152.51,152.44,14.48683622]
[1749430790441,6.55705599,152.51,152.47,7.92704656]
[1749430790621,26.0,152.48,152.47,7.92704656]
[1749430791127,19.38322497,152.51,152.47,7.92704656]
[1749430791506,14.48410255,152.51,152.47,7.92704656]
[1749430791713,19.38177994,152.51,152.47,7.92704656]
[1749430792505,14.48410255,152.51,152.47,7.92704656]
[1749430792912,172.1,152.52,152.48,7.92704656]
[1749430792913,180.02704656,152.52,152.48,7.92704656]
[1749430793108,172.1,152.52,152.48,7.92704656]
[1749430793309,178.65654292,152.52,152.48,7.92704656]
[1749430794441,172.1,152.52,152.49,7.92704656]
[1749430797335,26.0,152.52,152.49,7.92704656]
[1749430800446,40.48380264,152.52,152.46,17.21896691]
[1749430800742,40.48380264,152.52,152.48,7.92704656]
[1749430801925,40.48380264,152.52,152.46,10.66]
[1749430801926,7.92704656,152.5,152.46,10.66]
[1749430802123,7.92704656,152.49,152.45,7.92704656]
[1749430802540,14.48475937,152.5,152.45,7.92704656]
[1749430803933,14.48475937,152.5,152.45,14.48650554]
[1749430804940,14.48475937,152.5,152.45,7.92704656]
[1749430805518,7.92704656,152.49,152.44,26.57669542]
[1749430805717,7.92704656,152.48,152.44,26.57669542]
[1749430805929,7.92704656,152.49,152.44,33.13661576]
[1749430806133,7.92704656,152.49,152.45,7.92704656]
[1749430807119,14.48486418,152.49,152.45,7.92704656]
[1749430807749,4.88518768,152.51,152.48,7.92704656]
[1749430807963,6.55620543,152.53,152.5,7.92704656]
[1749430808247,6.55578974,152.54,152.51,7.92704656]
[1749430808452,14.4828363,152.54,152.5,7.92704656]
[1749430808947,14.4828363,152.54,152.48,7.92704656]
[1749430808948,7.92704656,152.53,152.48,7.92704656]
[1749430809660,7.92704656,152.53,152.49,7.92704656]
[1749430809959,14.4828363,152.54,152.49,7.92704656]
[1749430811346,18.94035266,152.54,152.5,12.38456292]
[1749430812135,18.94035266,152.54,152.49,12.38456292]
[1749430812963,12.38456292,152.53,152.49,12.38456292]
[1749430813163,18.94035266,152.54,152.5,12.38456292]
[1749430813459,26.0,152.53,152.5,12.38456292]
[1749430815568,26.0,152.55,152.54,12.38456292]
[1749430816158,12.96353605,152.6,152.54,31.03421178]
[1749430816341,12.96353605,152.6,152.53,12.38456292]
[1749430816342,12.38456292,152.58,152.53,12.38456292]
[1749430816546,38.38456292,152.57,152.53,12.38456292]
[1749430817741,26.0,152.57,152.53,12.38456292]
[1749430818058,26.0,152.57,152.54,12.38456292]
[1749430820244,32.5544239,152.57,152.54,12.38456292]
[1749430821037,26.0,152.57,152.54,12.38456292]
[1749430821657,26.0,152.58,152.56,12.38456292]
[1749430823537,12.38456292,152.62,152.57,12.38456292]
[1749430823767,26.0,152.59,152.58,12.38456292]
[1749430824558,26.0,152.59,152.56,6.55476283]
[1749430824559,12.38456292,152.62,152.57,31.03421178]
[1749430824761,18.93691761,152.62,152.57,31.03421178]
[1749430827070,18.93691761,152.62,152.58,12.38456292]
[1749430827762,6.55235469,152.62,152.59,12.38456292]
[1749430828789,32.55193038,152.63,152.6,12.38456292]
[1749430829070,26.0,152.63,152.6,12.38456292]
[1749430829279,146.1,152.64,152.6,12.38456292]
[1749430829656,152.65142055,152.64,152.6,12.38456292]
[1749430829862,146.1,152.64,152.61,12.38456292]
[1749430830108,26.0,152.65,152.62,12.38456292]
[1749430830384,26.0,152.65,152.63,12.38456292]
[1749430831471,26.0,152.65,152.62,12.38456292]
[1749430832190,32.5510367,152.65,152.62,12.38456292]
[1749430832867,32.5510367,152.65,152.61,31.03421178]
[1749430836678,18.93678412,152.62,152.59,18.64964886]
[1749430836882,18.93649395,152.63,152.59,31.03421178]
[1749430837193,6.55193103,152.63,152.6,12.38456292]
[1749430840194,18.93649395,152.63,152.59,12.38456292]
[1749430841614,12.38456292,152.62,152.57,10.6]
[1749430841903,6.55193103,152.63,152.57,10.6]
[1749430841904,12.38456292,152.61,152.57,63.44456292]
[1749430842108,12.38456292,152.62,152.58,12.38456292]
[1749430842492,12.38456292,152.61,152.57,63.44456292]
[1749430843986,6.55307994,152.6,152.57,63.44456292]
[1749430844410,6.55307994,152.6,152.57,51.06]
[1749430847604,18.93764286,152.6,152.56,40.44]
[1749430848718,12.38456292,152.62,152.57,12.38456292]
[1749430849219,18.93652941,152.63,152.59,12.38456292]
[1749430849993,18.93652941,152.63,152.58,12.38456292]
[1749430850209,6.55196649,152.63,152.58,12.38456292]
[1749430850414,18.93652941,152.63,152.58,12.38456292]
[1749430850615,12.38456292,152.62,152.58,12.38456292]
[1749430850987,12.38456292,152.62,152.57,31.03421178]
[1749430851805,12.38456292,152.59,152.55,18.64964886]
[1749430852115,6.55522779,152.55,152.49,56.68220828]
[1749430852307,12.38456292,152.5,152.47,10.6]
[1749430852814,12.38456292,152.51,152.47,10.6]
[1749430854694,12.38456292,152.51,152.47,51.04]
[1749430856209,12.38456292,152.51,152.47,63.42456292]
[1749430856599,44.9413341,152.52,152.47,69.98315986]
[1749430858632,1.5891,152.55,152.5,12.38456292]
[1749430858806,1.5891,152.55,152.47,10.6]
[1749430858807,12.38456292,152.51,152.47,10.6]
[1749430859006,12.38456292,152.49,152.47,10.6]
[1749430859216,12.38456292,152.49,152.46,40.44]
[1749430859519,12.38456292,152.5,152.46,40.44]
[1749430860109,12.38456292,152.51,152.47,12.38456292]
[1749430860824,26.0,152.52,152.49,12.38456292]
[1749430863621,38.38456292,152.52,152.48,18.94258711]
[1749430865526,26.0,152.52,152.48,18.94258711]
[1749430866731,26.0,152.52,152.49,12.38456292]
[1749430867603,44.94036552,152.54,152.5,12.38456292]
[1749430868625,44.94036552,152.54,152.49,18.94224305]
[1749430869426,12.38456292,152.53,152.49,18.94224305]
[1749430869945,38.38456292,152.5,152.44,12.38456292]
[1749430870123,12.38456292,152.48,152.44,12.38456292]
[1749430870630,12.38456292,152.49,152.44,12.38456292]
[1749430871035,18.94258006,152.49,152.44,12.38456292]
[1749430871215,12.38456292,152.48,152.44,12.38456292]
[1749430872034,12.38456292,152.48,152.44,18.94447447]
[1749430872420,12.38456292,152.48,152.44,12.38456292]
[1749430872618,12.38456292,152.46,152.42,29.52526164]
[1749430872820,12.38456292,152.48,152.44,12.38456292]
[1749430873029,12.38456292,152.48,152.44,18.94413201]
[1749430874751,52.6091,152.55,152.47,12.38456292]
[1749430874939,12.38456292,152.52,152.48,12.38456292]
[1749430875941,12.38456292,152.52,152.48,18.94243932]
[1749430876115,26.0,152.51,152.49,12.38456292]
[1749430876635,26.0,152.51,152.48,18.94243932]
[1749430877234,38.38456292,152.52,152.48,12.38456292]
[1749430877435,12.38456292,152.5,152.45,82.05421178]
[1749430877629,26.0,152.52,152.46,12.38456292]
[1749430877630,12.38456292,152.51,152.46,12.38456292]
[1749430877829,12.38456292,152.51,152.47,12.38456292]
[1749430878338,12.38456292,152.5,152.46,12.38456292]
[1749430879033,12.38456292,152.5,152.44,25.20945823]
[1749430879034,12.38456292,152.48,152.44,25.20945823]
[1749430879540,12.38456292,152.48,152.44,37.59402115]
[1749430882846,12.38456292,152.49,152.44,37.59402115]
[1749430883140,12.38456292,152.49,152.45,12.38456292]
[1749430883323,32.5575093,152.5,152.46,12.38456292]
[1749430883324,26.0,152.5,152.46,12.38456292]
[1749430883527,26.0,152.5,152.47,12.38456292]
[1749430883929,12.38456292,152.52,152.48,12.38456292]
[1749430884314,12.38456292,152.53,152.49,12.38456292]
[1749430884519,26.0,152.51,152.49,12.38456292]
[1749430884734,12.38456292,152.54,152.5,12.38456292]
[1749430884927,24.55366292,152.55,152.51,18.94151]
[1749430885134,44.72436864,152.55,152.51,12.38456292]
[1749430885334,12.38456292,152.54,152.5,12.38456292]
[1749430886043,12.38456292,152.56,152.52,12.38456292]
[1749430887520,18.93940407,152.56,152.52,12.38456292]
[1749430887744,18.93940407,152.56,152.51,12.38456292]
[1749430888642,18.93940407,152.56,152.51,18.94137183]
[1749430888858,12.38456292,152.55,152.5,12.38456292]
[1749430889557,12.38456292,152.55,152.51,12.38456292]
[1749430892446,18.9397974,152.55,152.51,12.38456292]
[1749430892653,12.38456292,152.55,152.51,12.38456292]
[1749430893144,12.38456292,152.55,152.51,18.94148368]
[1749430893343,18.93949675,152.56,152.51,18.94148368]
[1749430894553,18.93949675,152.56,152.51,12.38456292]
[1749430895637,6.55493383,152.56,152.51,18.94150175]
[1749430895850,18.93949675,152.56,152.52,12.38456292]
[1749430896264,23.83322716,152.56,152.52,12.38456292]
[1749430896560,12.38456292,152.55,152.51,12.38456292]
[1749430897127,12.38456292,152.55,152.5,6.557218]
[1749430897128,12.38456292,152.55,152.5,18.94178092]
[1749430897443,17.27829333,152.55,152.51,12.38456292]
[1749430897832,12.38456292,152.55,152.51,12.38456292]
[1749430898154,18.93979911,152.55,152.51,12.38456292]
[1749430900254,12.38456292,152.52,152.46,12.1758]
[1749430900429,12.38456292,152.5,152.46,10.58]
[1749430900630,12.38456292,152.5,152.46,12.38456292]
[1749430900831,12.38456292,152.49,152.44,0.14216157]
[1749430901031,12.38456292,152.49,152.44,12.38456292]
[1749430901457,12.38456292,152.49,152.43,18.64964886]
[1749430901458,12.38456292,152.49,152.45,12.38456292]
[1749430902342,12.38456292,152.49,152.45,18.94406971]
[1749430902547,12.38456292,152.49,152.45,6.55950679]
[1749430902744,12.38456292,152.49,152.45,12.38456292]
[1749430902745,18.9424172,152.49,152.45,12.38456292]
[1749430904143,12.38456292,152.49,152.45,12.38456292]
[1749430904345,12.38456292,152.46,152.4,18.64964886]
[1749430904547,12.38456292,152.47,152.42,31.03421178]
[1749430904749,30.89373041,152.49,152.46,12.38456292]
[1749430904949,26.0,152.49,152.48,12.38456292]
[1749430905561,26.0,152.49,152.43,0.28432314]
[1749430905849,26.0,152.49,152.46,12.38456292]
[1749430906365,12.38456292,152.51,152.46,12.38456292]
[1749430906673,184.48456292,152.52,152.48,12.38456292]
[1749430907134,26.0,152.49,152.45,18.64964886]
[1749430907334,26.0,152.43,152.38,12.38456292]
[1749430907556,12.38456292,152.44,152.39,12.38456292]
[1749430907757,26.0,152.46,152.4,18.64964886]
[1749430907947,44.94381995,152.46,152.42,18.64964886]
[1749430908150,38.38456292,152.46,152.43,0.14216157]
[1749430908461,12.38456292,152.44,152.39,18.64964886]
[1749430908660,12.38456292,152.41,152.4,0.14216157]
[1749430908858,12.38456292,152.41,152.38,18.64964886]
[1749430909365,12.38456292,152.4,152.37,18.64964886]
[1749430909536,12.38456292,152.4,152.37,0.28432314]
[1749430909744,12.38456292,152.4,152.36,31.03421178]
[1749430910131,12.38456292,152.4,152.37,0.28432314]
[1749430910575,12.38456292,152.4,152.37,0.14216157]
[1749430910932,12.38456292,152.4,152.37,0.28432314]
[1749430911363,12.38456292,152.41,152.37,0.28432314]
[1749430911667,12.38456292,152.41,152.37,6.84722697]
[1749430912632,12.38456292,152.41,152.39,0.14216157]
[1749430912838,12.38456292,152.45,152.41,0.14216157]
[1749430913343,12.38456292,152.45,152.41,0.28432314]
[1749430913650,12.38456292,152.45,152.43,0.14216157]
[1749430914070,12.38456292,152.45,152.42,18.64964886]
[1749430914369,12.38456292,152.45,152.42,0.14216157]
[1749430914952,12.38456292,152.45,152.42,18.79181043]
[1749430915556,38.38456292,152.46,152.43,18.64964886]
[1749430916461,38.38456292,152.46,152.42,18.933972]
[1749430918370,158.48456292,152.47,152.42,37.87929257]
[1749430918555,12.38456292,152.43,152.42,0.14216157]
[1749430918870,12.38456292,152.43,152.4,0.28432314]
[1749430919847,12.38456292,152.44,152.4,0.28432314]
[1749430921769,12.38456292,152.44,152.41,18.64964886]
[1749430923573,12.38456292,152.43,152.4,18.933972]
[1749430923961,12.38456292,152.43,152.4,0.28432314]
[1749430924464,12.38456292,152.44,152.4,6.84594955]
[1749430924669,26.0,152.47,152.44,0.14216157]
[1749430924874,12.38456292,152.49,152.46,0.14216157]
[1749430925169,38.38456292,152.49,152.46,0.14216157]
[1749430925353,38.38456292,152.49,152.46,18.79181043]
[1749430925871,38.38456292,152.49,152.46,0.14216157]
[1749430927464,44.94251674,152.49,152.46,0.14216157]
[1749430927650,12.38456292,152.48,152.45,18.64964886]
[1749430927846,12.38456292,152.46,152.43,18.933972]
[1749430928080,12.38456292,152.46,152.43,18.79181043]
[1749430929845,18.94384952,152.46,152.43,18.79181043]
[1749430930043,12.38456292,152.44,152.41,0.28432314]
[1749430930264,12.38456292,152.42,152.4,18.64964886]
[1749430930470,12.38456292,152.41,152.39,18.64964886]
[1749430930668,12.38456292,152.4,152.39,18.64964886]
[1749430930863,12.38456292,152.4,152.38,0.28432314]
[1749430932475,12.38456292,152.41,152.38,18.933972]
[1749430933060,12.38456292,152.4,152.38,0.28432314]
[1749430933482,12.38456292,152.39,152.37,0.14216157]
[1749430936273,12.38456292,152.39,152.36,18.79181043]
[1749430936274,12.38456292,152.38,152.36,18.64964886]
[1749430936484,12.38456292,152.38,152.36,0.14216157]
[1749430937579,12.38456292,152.39,152.36,0.14216157]
[1749430937880,12.38456292,152.39,152.36,0.28432314]
[1749430938382,12.38456292,152.38,152.36,0.14216157]
[1749430942085,18.94718525,152.38,152.36,0.14216157]
[1749430945489,12.38456292,152.37,152.33,18.79181043]
[1749430945667,16.40537898,152.39,152.33,18.79181043]
[1749430945668,18.94817769,152.36,152.33,18.64964886]
[1749430946074,18.94764017,152.37,152.34,0.14216157]
[1749430946281,6.56237306,152.39,152.36,0.14216157]
[1749430946596,12.38456292,152.37,152.36,0.14216157]
[1749430946886,12.38456292,152.37,152.34,18.79181043]
[1749430946887,12.38456292,152.37,152.35,0.14216157]
[1749430947670,18.94757437,152.37,152.35,0.14216157]
[1749430948175,12.38456292,152.36,152.34,0.14216157]
[1749430948376,12.38456292,152.36,152.33,18.64964886]
[1749430949368,12.38456292,152.35,152.33,18.64964886]
[1749430949691,12.38456292,152.38,152.34,0.28432314]
[1749430949995,6.56245715,152.39,152.36,0.14216157]
[1749430949996,12.38456292,152.39,152.36,0.14216157]
[1749430950291,12.38456292,152.38,152.34,0.14216157]
[1749430950491,12.38456292,152.37,152.34,0.28432314]
[1749430950789,12.38456292,152.37,152.34,0.14216157]
[1749430951482,18.94755425,152.37,152.34,0.14216157]
[1749430952082,12.38456292,152.37,152.34,0.14216157]
[1749430957289,18.94763728,152.37,152.34,0.14216157]
[1749430959998,12.38456292,152.37,152.33,18.64964886]
[1749430960303,18.94755645,152.37,152.33,18.64964886]
[1749430960501,12.38456292,152.36,152.33,18.64964886]
[1749430961700,18.9480028,152.36,152.33,18.64964886]
[1749430961880,12.38456292,152.36,152.33,18.64964886]
[1749430962599,18.94796854,152.36,152.33,18.64964886]
[1749430963209,12.38456292,152.34,152.31,18.64964886]
[1749430963582,18.94892721,152.34,152.31,18.64964886]
[1749430963806,18.94892721,152.34,152.3,18.79181043]
[1749430965304,12.38456292,152.34,152.3,18.79181043]
[1749430967011,18.94893289,152.34,152.3,18.79181043]
[1749430975901,12.38456292,152.33,152.29,18.79181043]
[1749430976090,12.38456292,152.31,152.29,18.64964886]